bitfinex-derivatives/quotes_SOLF0:USTF0_20250211
["timestamp","ask_amount","ask_price","bid_price","bid_amount"]
[1739254925199,4.8808,204.85,204.84,0.03729296]
[1739254926697,10.65109589,204.85,204.84,0.03729296]
[1739254927297,4.8823,204.79,204.75,5.77029589]
[1739254927498,5.77029589,204.81,204.73,5.77029589]
[1739254927694,5.77029589,204.79,204.71,5.77029589]
[1739254927898,5.77029589,204.77,204.71,5.77029589]
[1739254928498,5.77029589,204.77,204.7,4.8842]
[1739254928499,5.77029589,204.75,204.72,0.03287123]
[1739254928896,5.77029589,204.73,204.63,8.82379589]
[1739254929098,4.8839,204.72,204.71,0.03464724]
[1739254929299,207.2484,204.85,204.63,13.70959589]
[1739254929496,0.03085709,204.74,204.69,0.0365573]
[1739254929700,9.05421082,204.74,204.69,0.0365573]
[1739254929901,9.02335373,204.74,204.62,6.79269898]
[1739254930101,9.05606612,204.74,204.69,0.03478408]
[1739254930603,4.8844,204.7,204.69,0.03478408]
[1739254931204,9.02335373,204.71,204.62,6.79269898]
[1739254931798,9.02335373,204.71,204.57,13.65485373]
[1739254931799,4.8856,204.65,204.57,13.65485373]
[1739254932000,9.02335373,204.71,204.57,13.65485373]
[1739254932218,4.8854,204.66,204.6,4.8868]
[1739254932405,0.03179942,204.66,204.62,0.03431387]
[1739254932807,4.886,204.64,204.62,0.03431387]
[1739254933107,0.03179942,204.66,204.62,0.03431387]
[1739254934610,0.03179942,204.66,204.64,4.8858]
[1739254935114,0.03179942,204.66,204.65,4.8856]
[1739254935907,1.5477,204.8,204.63,9.02335373]
[1739254936108,0.89770848,204.79,204.69,4.8845]
[1739254936415,4.883,204.76,204.66,9.02335373]
[1739254936605,4.883,204.76,204.69,4.8846]
[1739254936811,4.883,204.76,204.66,9.02335373]
[1739254937112,0.03287687,204.73,204.69,0.0366644]
[1739254937714,0.03287687,204.73,204.69,9.06001813]
[1739254938104,194.46,204.83,204.72,9.02335373]
[1739254938303,3.46,204.83,204.75,4.8831]
[1739254938503,9.02335373,204.85,204.72,9.02335373]
[1739254938704,4.5501,204.86,204.72,9.02335373]
[1739254939517,9.02335373,204.85,204.77,0.03687704]
[1739254939707,4.8825,204.78,204.77,0.03687704]
[1739254940410,9.02335373,204.85,204.77,0.03687704]
[1739254941718,4.8824,204.79,204.77,0.03687704]
[1739254941922,9.02335373,204.85,204.77,0.03687704]
[1739254942318,4.8825,204.78,204.77,0.03687704]
[1739254947621,4.8823,204.79,204.77,0.03687704]
[1739254947819,9.02335373,204.85,204.77,0.03687704]
[1739254949421,4.8818,204.81,204.77,4.91947704]
[1739254949622,9.02335373,204.85,204.77,4.91947704]
[1739254949822,4.8817,204.82,204.77,4.91947704]
[1739254951724,4.8822,204.8,204.77,0.03687704]
[1739254952122,4.8825,204.79,204.77,0.03687704]
[1739254953026,9.02335373,204.85,204.77,0.03687704]
[1739254953326,4.8825,204.78,204.77,0.03687704]
[1739254954330,4.8823,204.79,204.77,0.03687704]
[1739254954828,4.8825,204.78,204.77,0.03687704]
[1739254955628,4.8821,204.8,204.77,0.03687704]
[1739254955830,9.02335373,204.85,204.77,0.03687704]
[1739254957130,4.8825,204.78,204.77,0.03687704]
[1739254957331,9.02335373,204.85,204.77,0.03687704]
[1739254958330,4.8822,204.8,204.77,0.03687704]
[1739254959931,4.8822,204.8,204.77,4.91957704]
[1739254960338,4.8822,204.8,204.77,0.03687704]
[1739254960731,9.02335373,204.85,204.77,0.03687704]
[1739254961435,4.8823,204.79,204.77,0.03687704]
[1739254961938,9.02335373,204.85,204.77,0.03687704]
[1739254962130,4.8825,204.78,204.77,0.03687704]
[1739254962535,4.8823,204.79,204.77,0.03687704]
[1739254962840,9.02335373,204.85,204.77,0.03687704]
[1739254963134,4.8824,204.79,204.77,0.03687704]
[1739254963535,9.02335373,204.85,204.77,0.03687704]
[1739254963742,9.02335373,204.82,204.77,0.03687704]
[1739254963935,4.8825,204.78,204.77,0.03687704]
[1739254965642,10.65328992,204.78,204.77,0.03687704]
[1739254966044,10.65328992,204.78,204.77,7.704e-05]
[1739254968346,4.8825,204.78,204.77,7.704e-05]
[1739254970852,10.65328992,204.78,204.77,7.704e-05]
[1739254972851,5.80423422,204.8,204.77,7.704e-05]
[1739254973043,4.8823,204.79,204.77,7.704e-05]
[1739254974653,0.0334443,204.8,204.77,7.704e-05]
[1739254975045,5.77078992,204.78,204.77,7.704e-05]
[1739254975558,10.65328992,204.78,204.77,7.704e-05]
[1739254975853,4.8825,204.78,204.77,7.704e-05]
[1739254976450,0.0334443,204.8,204.77,7.704e-05]
[1739254977049,4.8824,204.79,204.77,7.704e-05]
[1739254977757,5.80423422,204.8,204.77,7.704e-05]
[1739254977958,4.8825,204.78,204.77,7.704e-05]
[1739254978762,4.8823,204.79,204.77,7.704e-05]
[1739254979965,4.8825,204.78,204.77,7.704e-05]
[1739254985567,4.8823,204.79,204.77,7.704e-05]
[1739254986469,5.80423422,204.8,204.77,7.704e-05]
[1739254986672,4.8822,204.79,204.77,7.704e-05]
[1739254986968,0.0334443,204.8,204.77,7.704e-05]
[1739254988368,5.80423422,204.8,204.77,7.704e-05]
[1739254990669,4.8822,204.79,204.77,7.704e-05]
[1739254990970,0.0334443,204.8,204.77,7.704e-05]
[1739254991272,4.8825,204.78,204.77,7.704e-05]
[1739254992968,10.65328992,204.78,204.77,7.704e-05]
[1739254999578,4.8825,204.78,204.77,7.704e-05]
[1739255002075,0.0334443,204.8,204.77,7.704e-05]
[1739255002275,4.8823,204.79,204.77,7.704e-05]
[1739255005285,0.0334443,204.8,204.77,7.704e-05]
[1739255005487,4.8825,204.78,204.77,7.704e-05]
[1739255008389,0.0334443,204.8,204.77,7.704e-05]
[1739255008589,4.8823,204.79,204.77,7.704e-05]
[1739255009994,4.8825,204.78,204.77,7.704e-05]
[1739255014697,4.9156443,204.8,204.77,7.704e-05]
[1739255015092,0.0334443,204.8,204.77,7.704e-05]
[1739255015292,4.8825,204.79,204.77,7.704e-05]
[1739255015791,4.8825,204.78,204.77,7.704e-05]
[1739255017593,4.8823,204.79,204.77,7.704e-05]
[1739255017986,0.0334443,204.8,204.77,5.77086696]
[1739255018194,0.0334443,204.8,204.79,10.65298992]
[1739255018388,145.91046195,204.89,204.79,5.77078992]
[1739255018587,145.91046195,204.89,204.82,5.77078992]
[1739255018785,136.89480158,204.89,204.82,10.65228992]
[1739255018989,136.89480158,204.89,204.82,5.77078992]
[1739255019290,81.66594338,204.89,204.82,5.77078992]
[1739255019486,4.8804,204.87,204.82,10.65208992]
[1739255019694,0.02319633,204.88,204.84,5.77078992]
[1739255020192,4.8805,204.87,204.84,5.77078992]
[1739255021794,4.8805,204.87,204.83,0.03640066]
[1739255024196,4.8805,204.87,204.83,4.91770066]
[1739255025101,0.02319633,204.88,204.83,0.03640066]
[1739255025300,4.90329633,204.88,204.84,4.881]
[1739255025598,4.90329633,204.88,204.83,0.03640066]
[1739255026192,0.02319633,204.88,204.83,0.03640066]
[1739255026390,4.8804,204.87,204.83,0.03640066]
[1739255026799,4.8804,204.87,204.83,4.91760066]
[1739255027196,0.02319633,204.88,204.83,0.03640066]
[1739255027402,0.02319633,204.88,204.84,5.77078992]
[1739255028296,0.02319633,204.88,204.86,5.77078992]
[1739255028501,0.02319633,204.88,204.87,4.8803]
[1739255029104,0.02319633,204.88,204.84,5.77078992]
[1739255029404,0.02319633,204.88,204.85,2.84473569]
[1739255029605,4.90339633,204.88,204.84,10.65178992]
[1739255029804,4.90339633,204.88,204.85,2.84495648]
[1739255030007,4.90339633,204.88,204.84,5.77078992]
[1739255031699,4.8808,204.86,204.83,0.03640066]
[1739255032608,4.8804,204.87,204.83,0.03640066]
[1739255033405,0.02319633,204.88,204.83,0.03640066]
[1739255034109,4.8808,204.85,204.83,0.03640066]
[1739255035106,4.8806,204.86,204.83,0.03640066]
[1739255035408,0.02319633,204.88,204.83,0.03640066]
[1739255036105,4.881,204.85,204.83,0.03640066]
[1739255037204,0.02319633,204.88,204.84,5.77078992]
[1739255038713,4.8804,204.87,204.84,5.77078992]
[1739255039412,4.8804,204.87,204.83,0.03640066]
[1739255040311,5.77078992,204.87,204.83,0.03640066]
[1739255041814,4.8811,204.84,204.83,0.03640066]
[1739255042016,5.77078992,204.87,204.83,0.03640066]
[1739255042416,4.8808,204.85,204.83,0.03640066]
[1739255042710,0.02319633,204.88,204.83,0.03640066]
[1739255043117,0.02319633,204.88,204.84,10.65178992]
[1739255043310,0.02319633,204.88,204.84,5.77078992]
[1739255044413,0.02319633,204.88,204.86,5.77078992]
[1739255045519,0.02319633,204.88,204.87,4.8803]
[1739255045716,0.02319633,204.88,204.83,0.03640066]
[1739255046716,0.02319633,204.88,204.86,4.8804]
[1739255046918,0.02319633,204.88,204.84,5.77078992]
[1739255047315,0.02319633,204.88,204.84,10.65168992]
[1739255047521,0.02319633,204.88,204.84,5.77078992]
[1739255047719,0.02319633,204.88,204.86,5.77078992]
[1739255048022,0.02319633,204.88,204.87,4.8803]
[1739255049215,0.02319633,204.88,204.86,5.77078992]
[1739255050021,0.02319633,204.88,204.86,4.8805]
[1739255051121,0.02319633,204.88,204.84,5.77078992]
[1739255051323,0.02319633,204.88,204.87,4.8803]
[1739255053019,0.02319633,204.88,204.85,4.8807]
[1739255053923,0.02319633,204.88,204.83,0.03640066]
[1739255054421,0.02319633,204.88,204.84,8.61504382]
[1739255054622,0.02319633,204.88,204.84,5.77078992]
[1739255054822,0.02319633,204.88,204.85,2.84424111]
[1739255055019,0.02319633,204.88,204.84,5.77078992]
[1739255055219,0.02319633,204.88,204.86,4.8806]
[1739255055421,0.02319633,204.88,204.84,5.77078992]
[1739255055614,0.02319633,204.88,204.85,2.84532581]
[1739255055818,0.02319633,204.88,204.84,5.77078992]
[1739255056018,0.02319633,204.88,204.87,4.8803]
[1739255057922,0.02319633,204.88,204.87,7.72721428]
[1739255058917,0.02319633,204.88,204.87,7.72730699]
[1739255063021,9.633e-05,204.88,204.87,7.72730699]
[1739255065327,9.633e-05,204.88,204.87,10.76670699]
[1739255067126,9.633e-05,204.88,204.87,10.76768737]
[1739255069228,9.633e-05,204.88,204.87,10.76712276]
[1739255072835,9.633e-05,204.88,204.87,7.72772276]
[1739255073035,9.633e-05,204.88,204.87,2.84742276]
[1739255073430,9.633e-05,204.88,204.87,2.84909161]
[1739255074233,9.633e-05,204.88,204.87,7.72939161]
[1739255076033,9.633e-05,204.88,204.87,2.84909161]
[1739255077535,9.633e-05,204.88,204.87,7.73032139]
[1739255079637,9.633e-05,204.88,204.87,7.73065728]
[1739255082742,5.77078992,204.99,204.92,4.8791]
[1739255083035,5.77078992,204.99,204.92,5.77078992]
[1739255083441,9.4594,205.0,204.94,4.8786]
[1739255083835,9.4594,205.0,204.95,0.03273953]
[1739255084040,4.5821,205.0,204.95,0.03273953]
[1739255084236,3.0316,205.0,204.95,0.03273953]
[1739255084641,3.0316,205.0,204.95,4.91113953]
[1739255085143,3.0316,205.0,204.95,0.03273953]
[1739255086240,4.8778,204.98,204.95,0.03273953]
[1739255086441,5.77078992,204.99,204.95,0.03273953]
[1739255087739,4.8778,204.98,204.95,0.03273953]
[1739255088947,4.878,204.97,204.95,0.03273953]
[1739255089149,5.77078992,204.99,204.95,0.03273953]
[1739255089550,10.64848992,204.99,204.95,0.03273953]
[1739255089849,5.77078992,204.99,204.95,0.03273953]
[1739255090249,4.878,204.97,204.95,0.03273953]
[1739255090550,5.77078992,204.99,204.95,0.03273953]
[1739255091753,5.77078992,204.97,204.95,0.03273953]
[1739255091950,5.77078992,204.97,204.87,1.5984]
[1739255092150,4.8791,204.93,204.87,6.4787]
[1739255093146,0.03164473,204.92,204.88,10.68548588]
[1739255093446,0.03164473,204.92,204.88,0.03459596]
[1739255093648,5.77078992,204.9,204.88,0.03459596]
[1739255094346,5.77078992,204.9,204.8,12.5634889]
[1739255094543,5.77078992,204.84,204.8,6.79269898]
[1739255095048,4.881,204.85,204.8,6.79269898]
[1739255095448,5.77078992,204.86,204.78,5.77078992]
[1739255095648,0.03136216,204.85,204.8,0.03727065]
[1739255096655,0.03136216,204.85,204.8,5.80806057]
[1739255097854,0.03136216,204.85,204.8,10.68996057]
[1739255098356,0.03136216,204.85,204.8,5.80806057]
[1739255098956,0.03136216,204.85,204.81,4.8817]
[1739255099258,0.03136216,204.85,204.8,5.80806057]
[1739255100052,4.91226216,204.85,204.8,5.80806057]
[1739255100654,0.03136216,204.85,204.8,10.69006057]
[1739255101857,0.03136216,204.85,204.8,5.80806057]
[1739255102553,0.03136216,204.85,204.82,5.77078992]
[1739255102961,0.03136216,204.85,204.84,5.77078992]
[1739255103555,0.03136216,204.85,204.84,10.65188992]
[1739255106964,0.03136216,204.85,204.84,5.77078992]
[1739255107762,0.03136216,204.85,204.84,10.65188992]
[1739255108667,0.03136216,204.85,204.84,5.77078992]
[1739255108862,0.03136216,204.85,204.82,5.77078992]
[1739255109068,0.03136216,204.85,204.8,0.03727065]
[1739255109863,4.91216216,204.85,204.8,4.91927065]
[1739255110365,4.91216216,204.85,204.8,0.03727065]
[1739255112367,0.03136216,204.85,204.8,0.03727065]
[1739255112557,5.77078992,204.84,204.8,0.03727065]
[1739255113858,4.8818,204.81,204.8,0.03727065]
[1739255115660,4.8823,204.79,204.74,10.65418992]
[1739255116060,5.77078992,204.82,204.74,10.65418992]
[1739255116061,5.77078992,204.82,204.74,5.77078992]
[1739255116275,10.65258992,204.82,204.75,4.883]
[1739255116569,5.77078992,204.82,204.75,4.883]
[1739255116770,4.91540471,204.81,204.76,0.03145009]
[1739255117071,0.03350471,204.81,204.76,0.03145009]
[1739255117371,4.8825,204.79,204.76,0.03145009]
[1739255117870,0.03350471,204.81,204.76,0.03145009]
[1739255118669,4.8825,204.78,204.76,0.03145009]
[1739255119872,4.8823,204.79,204.76,0.03145009]
[1739255120475,0.03350471,204.81,204.76,0.03145009]
[1739255120675,4.8827,204.78,204.76,0.03145009]
[1739255122170,4.8827,204.77,204.76,0.03145009]
[1739255125577,5.77078992,204.78,204.76,0.03145009]
[1739255125773,4.8824,204.79,204.76,0.03145009]
[1739255126174,4.91550471,204.81,204.76,0.03145009]
[1739255126779,4.91550471,204.81,204.76,4.91425009]
[1739255126975,0.03350471,204.81,204.76,0.03145009]
[1739255127175,4.8827,204.78,204.76,0.03145009]
[1739255127777,4.8827,204.77,204.76,0.03145009]
[1739255128177,5.77078992,204.8,204.76,0.03145009]
[1739255128377,4.8825,204.78,204.76,0.03145009]
[1739255129274,4.8822,204.8,204.76,0.03145009]
[1739255130973,4.8823,204.79,204.76,0.03145009]
[1739255131976,4.8823,204.79,204.76,4.91445009]
[1739255132374,4.8823,204.79,204.76,0.03145009]
[1739255132578,0.03350471,204.81,204.76,4.91445009]
[1739255132880,0.03350471,204.81,204.76,5.80224001]
[1739255133880,4.91530471,204.81,204.77,4.8825]
[1739255135077,0.03350471,204.81,204.78,4.8824]
[1739255135785,0.03350471,204.81,204.76,0.03145009]
[1739255136278,5.77078992,204.8,204.76,0.03145009]
[1739255136581,4.8825,204.78,204.76,0.03145009]
[1739255137674,5.77078992,204.8,204.76,0.03145009]
[1739255138282,4.8823,204.79,204.76,0.03145009]
[1739255138682,5.77078992,204.8,204.76,0.03145009]
[1739255139385,4.8826,204.78,204.76,0.03145009]
[1739255139586,5.77078992,204.8,204.76,0.03145009]
[1739255139781,0.03350471,204.81,204.76,0.03145009]
[1739255139981,4.91550471,204.81,204.76,0.03145009]
[1739255140177,0.03350471,204.81,204.78,5.77078992]
[1739255140385,0.03350471,204.81,204.8,5.77078992]
[1739255140584,0.03350471,204.81,204.78,5.77078992]
[1739255141181,0.03350471,204.81,204.8,10.65278992]
[1739255141386,5.77078992,204.9,204.8,5.77078992]
[1739255141587,5.77078992,204.9,204.83,5.77078992]
[1739255142588,0.03478511,204.89,204.84,0.03723331]
[1739255142885,4.8803,204.88,204.84,0.03723331]
[1739255143780,0.03478511,204.89,204.84,0.03723331]
[1739255144186,0.03478511,204.89,204.84,4.91823331]
[1739255145188,4.8801,204.88,204.84,0.03723331]
[1739255145589,0.03478511,204.89,204.84,0.03723331]
[1739255145789,4.8804,204.87,204.84,0.03723331]
[1739255145989,0.03478511,204.89,204.84,0.03723331]
[1739255146191,5.77078992,204.88,204.84,0.03723331]
[1739255147892,4.8806,204.86,204.84,0.03723331]
[1739255149995,5.77078992,204.88,204.84,0.03723331]
[1739255150293,4.8808,204.85,204.84,0.03723331]
[1739255152993,5.77078992,204.88,204.84,0.03723331]
[1739255153189,0.03478511,204.89,204.84,0.03723331]
[1739255154193,0.03478511,204.89,204.85,5.77078992]
[1739255155290,0.03478511,204.89,204.87,5.77078992]
[1739255155894,0.03478511,204.89,204.87,10.65098992]
[1739255156494,0.03478511,204.89,204.88,4.8801]
[1739255157496,0.03478511,204.89,204.87,10.65088992]
[1739255161799,0.03478511,204.89,204.87,5.77078992]
[1739255161994,5.77078992,204.98,204.87,5.77078992]
[1739255162199,191.0,205.07,204.95,5.77078992]
[1739255162200,5.77078992,205.02,204.95,5.77078992]
[1739255163099,4.877,205.01,204.95,5.77078992]
[1739255163299,4.91147281,205.01,204.96,0.03723329]
[1739255163697,0.03447281,205.01,204.96,0.03723329]
[1739255164310,0.03447281,205.01,204.96,4.91543329]
[1739255164801,0.03447281,205.01,204.96,0.03723329]
[1739255165402,5.77078992,205.0,204.96,0.03723329]
[1739255166605,4.8778,204.98,204.96,0.03723329]
[1739255168498,4.878,204.97,204.96,0.03723329]
[1739255172101,0.03447281,205.01,204.96,0.03723329]
[1739255172908,4.8775,204.99,204.96,0.03723329]
[1739255173109,0.03447281,205.01,204.96,0.03723329]
[1739255174805,4.91157281,205.01,204.97,4.8779]
[1739255177815,0.03447281,205.01,204.96,0.03723329]
[1739255178014,0.03447281,205.01,204.98,4.8775]
[1739255178216,0.03447281,205.01,204.96,0.03723329]
[1739255178513,0.03447281,205.01,204.98,4.8777]
[1739255178811,0.03447281,205.01,204.97,5.77078992]
[1739255179013,0.03447281,205.01,204.96,6.48013329]
[1739255179710,0.03447281,205.01,204.96,1.60213329]
[1739255180304,4.8773,205.0,204.96,1.60213329]
[1739255182116,4.8773,205.0,204.96,6.48033329]
[1739255182510,4.91147281,205.01,204.96,6.48033329]
[1739255183612,0.03447281,205.01,204.98,4.8777]
[1739255185717,0.03447281,205.01,204.97,10.64868992]
[1739255185918,0.03447281,205.01,204.96,1.60213329]
[1739255186317,4.91157281,205.01,204.96,6.48013329]
[1739255187219,4.8773,205.0,204.96,6.48013329]
[1739255187419,4.8773,205.0,204.96,1.60213329]
[1739255188012,5.79246913,205.01,204.96,1.60213329]
[1739255188218,10.66946913,205.01,204.96,6.48033329]
[1739255189923,4.8773,205.0,204.96,6.48033329]
[1739255190123,5.79246913,205.01,204.96,1.60213329]
[1739255191213,5.75799632,204.99,204.96,0.03723329]
[1739255192221,0.03447281,205.01,204.96,0.03723329]
[1739255192222,10.66946913,205.01,204.97,4.878]
[1739255192421,5.79246913,205.01,204.97,4.878]
[1739255192722,5.79246913,205.01,204.96,0.03723329]
[1739255192924,5.79246913,205.01,204.96,4.91543329]
[1739255193726,10.66946913,205.01,204.96,4.91543329]
[1739255194420,4.8773,205.0,204.96,4.91543329]
[1739255195227,10.66946913,205.01,204.96,4.91543329]
[1739255197128,5.79246913,205.01,204.98,4.8776]
[1739255198129,5.79246913,205.01,204.99,4.8775]
[1739255199129,5.79246913,205.01,204.96,4.91523329]
[1739255199825,5.79246913,205.01,204.96,0.03723329]
[1739255200423,4.8775,205.0,204.96,4.91523329]
[1739255201924,5.79246913,205.01,204.96,0.03723329]
[1739255202629,5.79246913,205.01,204.98,4.8775]
[1739255203030,5.79246913,205.01,204.96,0.03723329]
[1739255203235,5.79246913,205.01,204.99,4.8774]
[1739255204325,5.79246913,205.01,204.96,0.03723329]
[1739255204631,5.79246913,205.01,204.97,4.8778]
[1739255206134,10.66956913,205.01,204.97,4.8778]
[1739255206433,10.66956913,205.01,204.96,4.91543329]
[1739255206834,10.66956913,205.01,204.96,0.03723329]
[1739255207038,10.66956913,205.01,204.97,4.878]
[1739255209335,4.8773,205.0,204.96,0.03723329]
[1739255209832,10.66956913,205.01,204.96,0.03723329]
[1739255210030,5.79246913,205.01,204.96,0.03723329]
[1739255211237,0.03447281,205.01,204.96,0.03723329]
[1739255211431,0.03447281,205.01,204.98,4.8777]
[1739255214337,0.03447281,205.01,204.99,4.8775]
[1739255214837,5.79246913,205.01,204.96,0.03723329]
[1739255216832,5.75799632,204.99,204.96,0.03723329]
[1739255217532,5.75799632,204.99,204.96,4.91523329]
[1739255218237,5.75799632,204.99,204.96,0.03723329]
[1739255218439,5.75799632,204.97,204.96,0.03723329]
[1739255220741,10.63599632,204.97,204.96,0.03723329]
[1739255222239,5.75799632,204.97,204.96,0.03723329]
[1739255222438,10.63549632,204.99,204.96,0.03723329]
[1739255223045,5.75799632,204.99,204.96,0.03723329]
[1739255223341,1.5583,205.0,204.96,0.03723329]
[1739255223744,6.4358,205.0,204.96,0.03723329]
[1739255224440,1.5583,205.0,204.96,4.91523329]
[1739255224742,1.5583,205.0,204.96,0.03723329]
[1739255224944,5.79246913,205.01,204.96,0.03723329]
[1739255225842,10.66956913,205.01,204.97,4.8778]
[1739255226842,4.8773,205.0,204.96,0.03723329]
[1739255227047,5.79246913,205.01,204.96,0.03723329]
[1739255227543,5.79246913,205.01,204.97,4.8779]
[1739255228244,10.66946913,205.01,204.97,4.8779]
[1739255228443,10.66946913,205.01,204.96,4.91543329]
[1739255229239,4.8773,205.0,204.96,0.03723329]
[1739255229942,4.8776,204.99,204.96,0.03723329]
[1739255230148,10.63559632,204.99,204.96,0.03723329]
[1739255231241,5.75799632,204.97,204.96,0.03723329]
[1739255232150,5.75799632,204.99,204.96,0.03723329]
[1739255233049,4.8777,204.98,204.96,0.03723329]
[1739255233852,4.878,204.97,204.96,0.03723329]
[1739255234346,4.8777,204.98,204.96,0.03723329]
[1739255235146,5.75799632,204.99,204.96,0.03723329]
[1739255235348,10.63549632,204.99,204.96,0.03723329]
[1739255236149,4.8779,204.98,204.96,0.03723329]
[1739255236350,5.75799632,204.99,204.96,0.03723329]
[1739255236945,10.63549632,204.99,204.96,0.03723329]
[1739255237150,4.8775,204.99,204.96,0.03723329]
[1739255239059,4.8778,204.98,204.96,0.03723329]
[1739255239956,4.878,204.97,204.96,0.03723329]
[1739255242064,5.75799632,204.97,204.9,5.75799632]
[1739255242264,4.8785,204.95,204.89,1.56]
[1739255242563,5.75799632,204.97,204.89,1.56]
[1739255242762,5.75799632,204.97,204.9,4.8796]
[1739255242763,4.8787,204.94,204.9,4.8796]
[1739255243459,4.8789,204.93,204.9,0.03651689]
[1739255243858,4.8794,204.91,204.9,0.03651689]
[1739255244665,5.75799632,204.91,204.82,5.75799632]
[1739255244967,5.75799632,204.88,204.82,5.75799632]
[1739255245164,5.75799632,204.9,204.83,4.8813]
[1739255245561,5.75799632,204.9,204.82,5.75799632]
[1739255245562,4.8802,204.88,204.82,5.75799632]
[1739255245762,0.03114186,204.89,204.84,0.03440846]
[1739255245965,4.8803,204.88,204.84,0.03440846]
[1739255247161,0.03114186,204.89,204.84,0.03440846]
[1739255247464,5.75799632,204.88,204.84,0.03440846]
[1739255248764,5.75799632,204.86,204.84,0.03440846]
[1739255248966,4.8808,204.85,204.84,0.03440846]
[1739255251772,4.8806,204.86,204.84,0.03440846]
[1739255251966,7.32680574,204.88,204.84,0.03440846]
[1739255253171,4.8804,204.87,204.84,0.03440846]
[1739255254072,7.32680574,204.88,204.84,0.03440846]
[1739255255774,4.8806,204.86,204.84,0.03440846]
[1739255256267,1.561,204.88,204.84,0.03440846]
[1739255256468,0.03114186,204.89,204.85,10.64650574]
[1739255257269,4.91104186,204.89,204.85,10.64650574]
[1739255257675,4.91104186,204.89,204.85,4.8807]
[1739255259071,4.91104186,204.89,204.84,10.67928687]
[1739255259876,4.8801,204.88,204.84,10.67928687]
[1739255260069,4.8801,204.88,204.84,5.79818687]
[1739255260267,4.8804,204.87,204.84,5.79818687]
[1739255261174,4.8801,204.88,204.84,5.79818687]
[1739255261377,4.8801,204.88,204.84,10.67918687]
[1739255261778,0.03114186,204.89,204.84,5.79818687]
[1739255261977,4.91104186,204.89,204.85,4.8808]
[1739255262476,5.79492027,204.89,204.84,0.03440846]
[1739255262878,4.8802,204.88,204.84,0.03440846]
[1739255263177,5.79492027,204.89,204.84,0.03440846]
[1739255264277,4.8808,204.86,204.84,0.03440846]
[1739255264473,5.76377841,204.85,204.84,0.03440846]
[1739255265777,10.64457841,204.85,204.84,0.03440846]
[1739255270580,4.8821,204.8,204.78,5.76377841]
[1739255270879,4.8821,204.8,204.76,13.77957841]
[1739255271381,5.76377841,204.83,204.78,5.76377841]
[1739255271770,0.03357413,204.83,204.8,5.76377841]
[1739255272182,0.03357413,204.83,204.81,4.8816]
[1739255274080,0.03357413,204.83,204.8,10.64577841]
[1739255274279,0.03357413,204.83,204.8,5.76377841]
[1739255274485,5.79735254,204.83,204.78,0.03474667]
[1739255275871,4.8821,204.8,204.78,0.03474667]
[1739255278377,5.79735254,204.83,204.78,0.03474667]
[1739255278582,4.8818,204.81,204.78,0.03474667]
[1739255278984,4.8817,204.82,204.78,0.03474667]
[1739255279183,5.79735254,204.83,204.78,0.03474667]
[1739255281182,4.8821,204.8,204.78,0.03474667]
[1739255282382,4.8818,204.82,204.78,0.03474667]
[1739255282682,5.79735254,204.83,204.78,0.03474667]
[1739255283283,4.8817,204.82,204.78,0.03474667]
[1739255283479,5.79735254,204.83,204.78,0.03474667]
[1739255284875,4.882,204.8,204.78,0.03474667]
[1739255285081,5.76377841,204.79,204.72,5.76377841]
[1739255285278,5.76377841,204.79,204.72,10.64767841]
[1739255285279,4.883,204.76,204.72,10.64767841]
[1739255285475,4.883,204.76,204.72,5.76377841]
[1739255285680,5.76377841,204.79,204.72,5.76377841]
[1739255285985,4.8832,204.76,204.72,5.76377841]
[1739255286384,4.91638759,204.76,204.72,5.79677488]
[1739255286584,0.03318759,204.76,204.72,5.79677488]
[1739255286880,4.8832,204.75,204.72,5.79677488]
[1739255287080,0.03318759,204.76,204.72,5.79677488]
[1739255287280,0.03318759,204.76,204.72,10.68067488]
[1739255287677,0.03318759,204.76,204.72,5.79677488]
[1739255287881,4.91618759,204.76,204.72,5.79677488]
[1739255288589,4.8833,204.75,204.72,5.79677488]
[1739255289085,4.8833,204.75,204.72,0.03299647]
[1739255290780,4.8837,204.74,204.72,0.03299647]
[1739255290986,0.03318759,204.76,204.72,0.03299647]
[1739255291587,4.8837,204.73,204.72,0.03299647]
[1739255291788,5.76377841,204.73,204.66,5.76377841]
[1739255292984,0.03664909,204.72,204.67,0.03267003]
[1739255295388,4.8842,204.71,204.67,0.03267003]
[1739255295888,0.03664909,204.72,204.67,0.03267003]
[1739255296088,5.76377841,204.71,204.67,0.03267003]
[1739255297490,5.76377841,204.69,204.67,0.03267003]
[1739255298087,4.8849,204.68,204.67,0.03267003]
[1739255302592,5.76377841,204.69,204.6,5.76377841]
[1739255302792,1.5931,204.71,204.6,5.76377841]
[1739255302793,5.76377841,204.66,204.6,5.76377841]
[1739255303495,5.76377841,204.66,204.6,10.65057841]
[1739255303693,4.91788517,204.65,204.61,0.03077683]
[1739255304495,0.03228517,204.65,204.61,0.03077683]
[1739255304695,0.03228517,204.65,204.61,4.91727683]
[1739255304995,0.03228517,204.65,204.61,0.03077683]